Cogmind - Beta 13 @@@ ROGUE MODE // 2024.04.01 @ 19:22:55 Player: frawding Result: Destroyed by L-31 Rogue with Katana Performance ------------- Evolutions (2) 1000 Regions Visited (4) 800 Robots Destroyed (88) 440 Value Destroyed (2598) 2598 Prototype IDs (0) 0 Alien Tech Used (0) 0 Bonus (171) 171 TOTAL SCORE: 5009 Bonus ------- High Alert Combat Kills 171 Cogmind --------- Core Integrity 0/550 Matter 265/300 Energy 85/100 System Corruption 0% Temperature Cool (0) Movement Core (500) Ox9 Location -8/Materials Parts ------- > --- POWER (1) -------- (None) > --- PROPULSION (3) --- (None) > --- UTILITY (5) ------ Large Storage Unit Improved Signal Interpreter Melee Analysis Suite Hardened Medium Armor Plating > --- WEAPON (2) ------- Scythe > --- INVENTORY (15) --- Nuclear Core Micro Nuclear Core Improved Heat Sink Compact Matter Pod (150) Advanced Weight Redist. System Trap Scanner Advanced Visual Processing Unit Heavy Ion Cannon Scythe Peak State ------------ > --- POWER ------------ Micro Nuclear Core > --- PROPULSION ------- Aluminum Leg Aluminum Leg Carbon-fiber Leg > --- UTILITY ---------- Large Storage Unit Improved Sensor Array Improved Signal Interpreter Melee Analysis Suite Hardened Medium Armor Plating > --- WEAPON ----------- Heavy Ion Cannon Heavy Ion Cannon > --- INVENTORY -------- Improved Ion Engine Nuclear Core Improved Heat Sink Compact Matter Pod Advanced Visual Processing Unit Improved Sensor Array Signal Interpreter Improved Terrain Scanner Hardened Medium Armor Plating Trap Extractor Mini Grenade Launcher Scythe Scythe [Rating: 33] Favorites ----------- Power Micro Nuclear Core Engine Improved Ion Engine Power Core Micro Nuclear Core Propulsion Light Treads Treads Light Treads Leg Aluminum Leg Wheel Wheel Utility Large Storage Unit Device Improved Sensor Array Storage Large Storage Unit Processor Melee Analysis Suite Protection Hardened Medium Armor Plating Weapon Scythe Energy Cannon Heavy Ion Cannon Ballistic Gun Light Assault Rifle Ballistic Cannon Improved Light Cannon Launcher Mini Grenade Launcher Special Weapon Welding Torch Slashing Weapon Scythe Build | -11 -10 -10 -9 -8 ------- Run | Yrd Mat Min Mat Mat Slots Evolved 4 | . . . 2 2 Power . | . . . . . Propulsion 1 | . . . . 1 Utility 3 | . . . 2 1 Weapon . | . . . . . Parts Attached 122 | 5 4 9 44 60 Power 13 | 1 1 2 5 4 Engine 7 | 1 1 2 3 . Core 6 | . . . 2 4 Reactor . | . . . . . Propulsion 31 | 2 1 2 13 13 Treads 13 | . . . 7 6 Leg 7 | . . . . 7 Wheel 11 | 2 1 2 6 . Hover . | . . . . . Flight . | . . . . . Utility 36 | . 2 4 12 18 Device 16 | . 2 3 5 6 Storage 3 | . . 1 2 . Processor 5 | . . . 3 2 Hackware . | . . . . . Protection 12 | . . . 2 10 Artifact . | . . . . . Weapon 42 | 2 . 1 14 25 Energy Gun . | . . . . . Energy Cannon 12 | . . . . 12 Ballistic Gun 7 | 2 . . 5 . Ballistic Cannon 3 | . . . 3 . Launcher 8 | . . . 2 6 Special Weapon 1 | . . 1 . . Impact Weapon . | . . . . . Slashing Weapon 11 | . . . 4 7 Piercing Weapon . | . . . . . Special Melee Weapon . | . . . . . Unidentified Prototypes . | . . . . . Parts Lost 17 | . 2 . 5 10 Power 2 | . 1 . . 1 Propulsion 5 | . . . 3 2 Utility 6 | . . . 1 5 Weapon 4 | . 1 . 1 2 Highest Loss Streak 5 | . 1 . 1 5 To Critical Strikes . | . . . . . Average Slot Usage (%) 86 | . 53 70 93 85 Engine 3 | . 11 14 4 . Core 6 | . . . 6 7 Treads 11 | . . . 13 11 Leg 4 | . . . . 8 Wheel 4 | . 14 19 6 . Device 12 | . 4 18 17 9 Storage 7 | . . . 8 9 Processor 11 | . . . 9 17 Protection 7 | . . . 8 7 Energy Cannon 1 | . . . . 3 Ballistic Gun 3 | . 22 14 4 . Launcher 3 | . . . 4 2 Slashing Weapon 6 | . . . 8 6 Naked Turns . | . . . . . Heaviest Build 51 | 7 8 9 39 51 Greatest Support 60 | 10 10 20 40 60 Greatest Overweight (x) 15 | 2 . . 1 15 Average Overweight (x) . | . . . . . Largest Inventory Capacity 15 | 5 5 5 15 15 Average Capacity 12 | 5 5 5 11 15 Most Carried 15 | 5 5 5 15 15 Average Carried 11 | 2 3 3 10 13 Final Capacity 15 | 5 5 5 15 15 Final Carried 15 | 3 2 3 15 9 Class Distribution -------------------- 59% | Mutant 40% | Scavenger-Mutant Dominant Class ---------------- Mutant | -10/Materials Mutant | -10/Mines Mutant | -9/Materials Scavenger-Mutant | -8/Materials Resources | -11 -10 -10 -9 -8 ----------- Run | Yrd Mat Min Mat Mat Matter Collected 1798 | 328 91 73 696 610 Remotely . | . . . . . Salvage Created 3013 | 48 159 43 1042 1721 Parts 201 | 6 9 7 84 95 Haulers Intercepted 1 | . . . 1 . Recyclers Shooed 1 | . . . . 1 Parts Field Recycled . | . . . . . Retrieved Matter . | . . . . . Parts Self-Destructed . | . . . . . Prevented . | . . . . . Kills | -11 -10 -10 -9 -8 ------- Run | Yrd Mat Min Mat Mat Combat Hostiles Destroyed 61 | 1 4 . 27 29 Melee 32 | . . . 15 17 Guns 8 | 1 4 . 3 . Cannons 9 | . . . . 9 AOE 11 | . . . 9 2 Classes Destroyed 12 | 2 . 1 8 1 Worker 8 | 1 . 2 2 3 Builder 4 | . . . 2 2 Tunneler 1 | . . 1 . . Hauler 1 | . . . 1 . Recycler 4 | . . . 1 3 Operator 1 | . . . 1 . Watcher 8 | . . . 3 5 Swarmer 10 | . . . 7 3 Grunt 34 | 1 4 . 13 16 Duelist 5 | . . . 1 4 Sentry 11 | . . . 6 5 Hunter 1 | . . . . 1 Best Kill Streak 7 | 1 4 2 6 7 Combat Bots Only 7 | 1 4 . 5 7 Max Kills in Single Turn 4 | 1 1 1 4 2 Gunslinging . | . . . . . Exploded 3 | . . . 3 1 Melee 1 | . . . 1 1 Uniques/NPCs Destroyed . | . . . . . Combat | -11 -10 -10 -9 -8 -------- Run | Yrd Mat Min Mat Mat Hostile Shots Fired 452 | 4 48 . 128 272 Missed 139 | 2 15 . 36 86 Damage Taken 4971 | 22 403 . 1361 3185 Core 967 | 11 172 . 228 556 Absorbed by Shields . | . . . . . Regen/Repaired (Parts) 123 | . . . . 123 Core Remaining (%) 54 | 95 . 26 43 . Volleys Fired 119 | 8 26 20 30 35 Largest 2 | 2 2 2 2 2 Hottest 130 | 40 40 40 78 130 Shots Fired 187 | 16 47 21 43 60 Gun 114 | 16 47 19 32 . Cannon 58 | . . . 2 56 Launcher 13 | . . . 9 4 Special 2 | . . 2 . . Kinetic 116 | 16 47 19 34 . Thermal 58 | . . 2 . 56 Explosive 13 | . . . 9 4 Electromagnetic . | . . . . . Robot Hit Streak 12 | 4 12 8 5 8 Robot Miss Streak 5 | 1 3 1 5 4 Penetration Max . | . . . . . Secondary Targets 2 | . 2 . . . Max Gunslinging Chain 1 | . 1 . . . Shots Hit Robots 202 | 11 35 11 52 93 Core Hits 112 | 5 11 5 42 49 Critical Kills 2 | . . 1 . 1 Critical Parts Destroyed . | . . . . . Critical Strikes 11 | . . 1 3 7 Meltdown 1 | . . . . 1 Destroy 1 | . . 1 . . Sever 9 | . . . 3 6 Melee Attacks 121 | . . . 43 78 Impact . | . . . . . Slashing 121 | . . . 43 78 Piercing . | . . . . . Sneak Attacks 13 | . . . 4 9 Combat Hostiles . | . . . . . Follow-up Attacks . | . . . . . Damage Inflicted 5963 | 78 260 73 2244 3308 Guns 547 | 78 260 73 136 . Cannons 862 | . . . . 862 Explosions 1070 | . . . 840 230 Melee 3484 | . . . 1268 2216 Ramming . | . . . . . Kinetic 547 | 78 260 73 136 . Thermal 989 | . . . 127 862 Explosive 943 | . . . 713 230 Electromagnetic . | . . . . . Impact . | . . . . . Slashing 3484 | . . . 1268 2216 Piercing . | . . . . . Highest Corruption . | . . . . . Average Corruption . | . . . . . Corruption Purged . | . . . . . Corruption Blocked . | . . . . . Overload Shots . | . . . . . Overflow Damage 337 | . . . 95 242 Projectiles 30 | . . . . 30 Explosions 16 | . . . 16 . Melee 291 | . . . 79 212 Knockbacks . | . . . . . Impact . | . . . . . Kinetic . | . . . . . Secondary . | . . . . . Self-Inflicted Damage 168 | . . . 113 55 Shots 5 | . . . 4 1 Rammed . | . . . . . Targets Rammed . | . . . . . Kicked . | . . . . . Crushed . | . . . . . Highest Temperature 353 | 1 12 . 27 353 Average Temperature 83 | 1 4 . 10 97 Received Heat Transfer 1875 | 12 225 . 495 1143 Effects 2 | . . . . 2 Shutdowns 1 | . . . . 1 Matter Decay 1 | . . . . 1 Siege Activations . | . . . . . Robots Corrupted . | . . . . . Combat Hostiles . | . . . . . Parts Fried . | . . . . . Impact Corruptions . | . . . . . Robots Melted 1 | . . . . 1 Combat Hostiles 1 | . . . . 1 Parts Melted 2 | . . . . 2 Heat Transferred 1266 | . . . 100 1166 Parts Sabotaged . | . . . . . Parts Stolen . | . . . . . Parts Stripped . | . . . . . Power Chain Reactions . | . . . . . Alert | -11 -10 -10 -9 -8 ------- Run | Yrd Mat Min Mat Mat Peak Influence 565 | 25 86 78 538 565 Initial 200 | . 16 33 29 200 Average 277 | 19 47 46 272 364 Maximum Alert Level 2 | . . . 2 2 Low Security (%) 35 | 100 100 100 49 1 Level 1 38 | . . . 22 65 Level 2 25 | . . . 27 32 Level 3 . | . . . . . Level 4 . | . . . . . Level 5 . | . . . . . High Security . | . . . . . Max Security . | . . . . . Squads Dispatched 13 | . 1 . 7 5 Investigation 6 | . . . 4 2 Extermination . | . . . . . Reinforcement 6 | . 1 . 3 2 Assault 1 | . . . . 1 Garrison . | . . . . . Intercept . | . . . . . Searches Triggered . | . . . . . Construction Impeded 1 | . . . . 1 Haulers Reinforced . | . . . . . Active Scanning Responses . | . . . . . Cargo Convoy Interrupts . | . . . . . Stealth | -11 -10 -10 -9 -8 --------- Run | Yrd Mat Min Mat Mat Distress Signals 8 | . 1 . 3 4 Communications Jammed . | . . . . . Distress Signals . | . . . . . Times Spotted 108 | 1 8 2 44 53 Peak Tracking Total 8 | 1 4 2 6 8 Tactical Retreats 10 | . . 1 4 5 Traps | -11 -10 -10 -9 -8 ------- Run | Yrd Mat Min Mat Mat Traps Triggered 3 | . . . 1 2 Indirectly . | . . . . . Trap Hack Attempts . | . . . . . Triggered . | . . . . . Disarmed . | . . . . . Reprogrammed . | . . . . . Reused . | . . . . . Traps Extracted . | . . . . . Installed . | . . . . . Triggered . | . . . . . Machines | -11 -10 -10 -9 -8 ---------- Run | Yrd Mat Min Mat Mat Machines Disabled 6 | . . . 5 1 Max in Single Turn 3 | . . . 3 1 Machines Repaired . | . . . . . Machines Dismantled . | . . . . . Machines Sabotaged . | . . . . . Overloaded Fab Kills . | . . . . . Hacking | -11 -10 -10 -9 -8 --------- Run | Yrd Mat Min Mat Mat Machines Accessed 14 | . 1 . 5 8 Terminals 10 | . . . 4 6 Fabricators . | . . . . . Repair Stations 1 | . . . . 1 Recycling Units 1 | . 1 . . . Scanalyzers 1 | . . . 1 . Garrison Access 1 | . . . . 1 Total Hacks 65 | . 11 . 20 34 Successful 48 | . 8 . 18 22 Failed 16 | . 3 . 1 12 Catastrophic 1 | . . . . 1 Database Lockouts 1 | . . . 1 . Manual 1 | . . . 1 . Terminals 40 | . . . 17 23 Fabricators . | . . . . . Repair Stations 7 | . . . . 7 Recycling Units 11 | . 11 . . . Scanalyzers 3 | . . . 3 . Garrison Access 4 | . . . . 4 Terminal Hacks 30 | . . . 15 15 Record 22 | . . . 12 10 Robot Analysis 1 | . . . 1 . Emergency Access Points 1 | . . . . 1 Alert Level 2 | . . . 1 1 Unreport Threat 1 | . . . . 1 Locate Traps 1 | . . . . 1 Maintenance Status 1 | . . . 1 . Zone Layout 1 | . . . . 1 Fabricator Hacks . | . . . . . Repair Station Hacks 5 | . . . . 5 Scan Component 3 | . . . . 3 Repair 2 | . . . . 2 Recycling Unit Hacks 8 | . 8 . . . Recycle Component 4 | . 4 . . . Process 1 | . 1 . . . Report Inventory 2 | . 2 . . . Retrieve Components 1 | . 1 . . . Scanalyzer 3 | . . . 3 . Insert Component 1 | . . . 1 . Analyze 2 | . . . 2 . Garrison Access Hacks 2 | . . . . 2 Unlock Access 1 | . . . . 1 Coupler Status 1 | . . . . 1 Unauthorized Hacks . | . . . . . Terminals . | . . . . . Fabricators . | . . . . . Repair Stations . | . . . . . Recycling Units . | . . . . . Scanalyzers . | . . . . . Garrison Access . | . . . . . Data Cores Recovered . | . . . . . Used . | . . . . . Hacking Detections 10 | . 1 . 3 6 Full Trace Events 6 | . 1 . 3 2 Feedback Events . | . . . . . Feedback Blocked . | . . . . . Robot Schematics Acquired . | . . . . . Robots Built . | . . . . . Authchips . | . . . . . Time . | . . . . . Total Robot Build Rating . | . . . . . Part Schematics Acquired 1 | . . . 1 . Parts Built . | . . . . . Authchips . | . . . . . Time . | . . . . . Total Part Build Rating . | . . . . . Parts Repaired 2 | . . . . 2 Time 70 | . . . . 70 Parts Recycled 4 | . 4 . . . Recycled Matter 91 | . 91 . . . Retrieved Matter . | . . . . . Retrieved Components . | . . . . . Parts Scanalyzed 1 | . . . 1 . Part Schematics Acquired 1 | . . . 1 . Parts Damaged . | . . . . . Bothacking | -11 -10 -10 -9 -8 ------------ Run | Yrd Mat Min Mat Mat Used RIF Installer . | . . . . . Robots Hacked . | . . . . . Non-combat . | . . . . . Combat . | . . . . . Robot Hacks Applied . | . . . . . Relay Couplers Released . | . . . . . Fabnet Peak Effective % . | . . . . . Robots Rewired . | . . . . . Allies Hacked . | . . . . . Hacks Repelled . | . . . . . Allies | -11 -10 -10 -9 -8 -------- Run | Yrd Mat Min Mat Mat Total Allies . | . . . . . Largest Group . | . . . . . Highest-Rated Group . | . . . . . Highest-Rated Ally . | . . . . . Total Orders . | . . . . . Ally Attacks . | . . . . . Total Damage . | . . . . . Kills . | . . . . . Allies Corrupted . | . . . . . Allies Melted . | . . . . . Intel | -11 -10 -10 -9 -8 ------- Run | Yrd Mat Min Mat Mat Robot Analysis Total 1 | . . . 1 . Derelict Logs Recovered 1 | . . 1 . . Drone Launches . | . . . . . Drone Recoveries . | . . . . . Exploration | -11 -10 -10 -9 -8 ------------- Run | Yrd Mat Min Mat Mat Turns Passed 5503 | 252 273 346 2100 2532 Spaces Moved 3010 | 127 248 343 1271 1021 Core 86 | 74 . . . 12 Treads 1384 | . . . 701 683 Legs 326 | . . . . 326 Wheels 1214 | 53 248 343 570 . Hover . | . . . . . Flight . | . . . . . Fastest Speed 50 | 50 80 80 80 120 Average Speed 131 | 64 80 80 129 173 Slowest Speed 800 | 150 80 80 240 800 Overloaded Moves . | . . . . . Propulsion Burnouts . | . . . . . Robots Hopped . | . . . . . Cave-ins Triggered . | . . . . . Exploration Rate (%) 53 | 14 34 64 84 71 Regions Visited 4 Branch Regions 1 Pre-discovered Areas . | . . . . . Known Exits Taken 1 | . . . 1 . Unknown Exits Taken 3 | 1 1 1 . . Scrap Searched 1 | . . 1 . . Spaces Dug . | . . . . . Terrain Destroyed 187 | . . . 133 54 Melee . | . . . . . Projectile 21 | . . . . 21 AOE 166 | . . . 133 33 Terrain Rammed . | . . . . . Walls Destroyed . | . . . . . Machines Disabled . | . . . . . Actions | -11 -10 -10 -9 -8 --------- Run | Yrd Mat Min Mat Mat Total 4222 | 284 286 398 1635 1619 Wait 640 | 137 . 14 155 334 Move 3006 | 126 247 342 1270 1021 Hop . | . . . . . Pick Up 110 | 7 6 7 50 40 Fast Attach 11 | . . 1 8 2 Attach 71 | 5 4 6 22 34 Detach 21 | 1 2 1 4 13 Swap 40 | . . 2 14 24 Drop 83 | . 1 5 39 38 Fire 119 | 8 26 20 30 35 Melee 121 | . . . 43 78 Ram . | . . . . . Kick . | . . . . . Crush . | . . . . . Escape Stasis . | . . . . . Rewire . | . . . . . Trap . | . . . . . Miscellaneous . | . . . . . Route ------- -11/Scrapyard -10/Materials (discovered 3 exits: *Mat x2 / [*Min]) -10/Mines -9/Materials (discovered 3 exits: *Mat x3) -8/Materials (discovered 3 exits: *Fac / *Sto / Gar) History --------- Turn | Location | Event 2 | -11/Scrapyard | Met Revision 17 51 | -11/Scrapyard | Discovered new exit (range 8) 253 | -11/Scrapyard | Entered Materials 268 | -10/Materials | Discovered new exit (range 14) 311 | -10/Materials | Build established: Mutant 406 | -10/Materials | Core integrity fell below 50% 442 | -10/Materials | Discovered new exit (range 10) 479 | -10/Materials | Discovered new exit (range 11) 526 | -10/Materials | Entered Mines 619 | -10/Mines | Learned Materials emergency access door positions 771 | -10/Mines | Discovered new exit (range 6) 872 | -10/Mines | Entered Materials 872 | -9/Materials | Evolved 2 slots: Utility x2 1025 | -9/Materials | Build established: Scavenger-Mutant 1212 | -9/Materials | Discovered new exit (range 4) 1328 | -9/Materials | Identified exit to Materials 1839 | -9/Materials | Central database locked down 1932 | -9/Materials | Build established: Mutant 2050 | -9/Materials | Discovered exit to Materials (range 3) 2379 | -9/Materials | Discovered exit to Materials (range 3) 2659 | -9/Materials | Core integrity fell below 50% 2972 | -9/Materials | Entered another Materials area 2972 | -8/Materials | Evolved 2 slots: Propulsion x1, Utility x1 3050 | -8/Materials | Repaired Hrd. Medium Armor Plating 3083 | -8/Materials | Repaired Mni. Grenade Launcher 3195 | -8/Materials | Build established: Scavenger-Mutant 3606 | -8/Materials | Discovered new exit (range 15) 3765 | -8/Materials | Discovered new exit (range 9) 3895 | -8/Materials | Identified exit to Factory 4641 | -8/Materials | Identified exit to Garrison 4719 | -8/Materials | Build established: Mutant 4726 | -8/Materials | Identified exit to Storage 5059 | -8/Materials | Destroyed 7 combat bots 5065 | -8/Materials | Lost 4 parts (1n2u1w) 5372 | -8/Materials | First assault squad dispatched 5460 | -8/Materials | Core integrity fell below 50% 5492 | -8/Materials | Core integrity fell below 20% 5504 | -8/Materials | Destroyed by L-31 Rogue with Katana Last Messages --------------- Purged threat record, alert level lowered. C-30 ARC bursts open, deploying its payload. G-50 Soldier unfolds itself. L-31 Rogue unfolds itself. G-47 Trooper unfolds itself. I-25 Savior unfolds itself. Imp. Treads destroyed. U-05 Engineer builds a Wall. Imp. Light Armor Plating severed. Hvy. Ion Cannon destroyed. L-31 Rogue Imp. Aluminum Leg severed. Mic. Nuclear Core destroyed. L-31 Rogue Imp. Ion Engine severed. L-31 Rogue destroyed. G-47 Trooper destroyed. U-05 Engineer builds a Wall. Hvy. Armor Plating destroyed. Melee Analysis Suite destroyed. [Achievement: First Step to Greatness] [Achievement: 5k Club] Map ----- +----------------------------------------------------+ | ??????????????????????????? #??????????????????? | | ??????????????????????????? #??????????????????? | | ??????????????????????????? #??????????????????? | | ??????????????????????????? /??????????????????? | | ??????????????????????????# #??????????????????? | | ??????????????????????????# #??????????????????? | | ??????????????????????????# #??????????????????? | | ??????????????????????????# #??????????????????? | | ??????????????????????????# #??????????????????? | | ######????????????????????# #??????????????????? | | #######???????????????????+ #??????????????????? | | """ #?#########?????????# #??????????????????? | | "T" #?# ! #?????????# ###?#######????????? | | #?# ########### # """"""" #????????? | | #?# """ # # # """"""" #????????? | | ]]]### """"" # """"" # # """"""" #????????? | | ]] ### """"" # """"" # # """"""" #????????? | | ]] # """"" # """"" + + """"""" #????????? | | # """ # # # #????????? | | + # ""T"" # # ! ! !#????????? | | % # """ # """"" # # #????????? | | # """"" # #[%a##+########????????? | | # """"" ###########i= #???????????????? | | # """"" """# # = #???????????????? | | """ + """ >G"# =lY% ##?????###??????? | | """ # """# ! %@#** ## ???? #?????? | | ! """ + #### ! %#/ ## """ ""#?????? | | # #??# Y # # """ T"#?????? | | # #??# = # ## """ ""#?????? | | #####+###########??## ##### # """ #?????? | | #???????##?#### # """ #?????? | | """ """ """ #?????????##! # #?????? | | """ """ """ ###???????#! # #?????? | | """ """ """ ""#???????#! ! ! # #?????? | | T"#?????#?#! [=** #####+####?????? | | """ """ """ ""#???????#! % #???????? | | """ """ """ ###???????##! =! #???????? | | """ """ """ #???????#??####%=%"% = ##?#????? | | #????????????#"*=""" ########???????? | | = ]#??????#???#?##*%""" ##???#?????????? | | #????????????##%=%!%* ###??#?????#???? | | #############????######??##= !=[ #?##??#????#???? | | ????????????????## ##?##%"""" #???##?????????? | | ????????????????# #?##" """ #????#?????????? | | ??########??????# #?## """ ##?##??????????? | | ??#]] ]*#??????# #?## #?#?#????##??##? | | ??#]] !]#?#????# #??# #??????????????# | | ??# *[[#??????# [ #?## """ #??????#?#?????? | | ### *###########+###### """ ########??#????? | | %% % % """ # #?????#?? | +----------------------------------------------------+ Best States ------------- Heat Dissipation 45 Energy Generation 15 Energy Capacity 265 Matter Stores 300 Matter Capacity 300 Sight Range 16 Robot Scan Range 15 Terrain Scan Range 16 Terrain Scan Density 85 ECM Strength 1 Additional Mass Support 9 Armor Coverage 600 Evasion (%) 50 Melee Accuracy 5 Recoil Reduction 3 Trap Extractor Capacity 4 Item Schematics ----------------- Com. Matter Pod | -9/Materials | Scanalyzed Robot Schematics ------------------ None Fabricated ------------ Nothing Alien Tech Used ----------------- None Achievements -------------- 5k Club Crack Shot Everything Is Under Control First Step to Greatness I Spy It's Just You Librarian Loot Pinata One Hack Too Far Part-time Mechanic Significant Disruption Storm Trooper Uninvited Guest Challenges ------------ None Game ------ Seed OpticalSpacefoldDriver Manual? 0 Play Time 01:57:10 Cumulative 1.9 hours Start 2024.04.01 @ 12:58:49 End 2024.04.01 @ 19:22:55 Sessions 5 Manual Loads 0 Difficulty Rogue Special Mode None Game No. 1 Rogue 1 Adventurer 0 Explorer 0 Win Type - Total 0 Types 0/0/0/0/0/0/0/0/0 Lore% 2 Gallery% 3 Achievement% 5 Wizard Run 0 Options --------- Layout 1 ASCII 0 Keyboard 0 Movement Mouse Keybinds 0 Fullscreen 1 Font 24/Smallcaps Map View 50x35 Zoom Use 4% Tactical HUD 0 Map Filters NONE Filters NONE Steam 1 RUN: 0cae31dd-b4b4-49ec-8b15-bc646514c7bc